bitfinex-derivatives/quotes_BNBF0:USTF0_20250130
["timestamp","ask_amount","ask_price","bid_price","bid_amount"]
[1738250890609,0.27040327,680.32,679.18,0.922]
[1738250890915,0.27040327,680.31,679.18,0.922]
[1738250891215,1.38933296,680.4,679.18,0.922]
[1738250891415,0.27035596,680.39,679.18,0.922]
[1738250892515,1.38933296,680.4,679.18,0.922]
[1738250893216,0.29394473,680.4,679.18,0.922]
[1738250893416,0.27033537,680.39,679.18,0.922]
[1738250893616,0.29394473,680.4,679.18,0.922]
[1738250895218,0.29394473,680.4,679.19,0.29446841]
[1738250896720,0.29394473,680.4,679.19,1.36846841]
[1738250899223,0.27031346,680.39,679.19,1.36846841]
[1738250900422,0.29394473,680.4,679.19,1.36846841]
[1738250908229,1.09538823,680.83,679.19,1.36846841]
[1738250908429,0.27023873,680.82,679.19,1.36846841]
[1738250908929,0.27023873,680.82,679.2,0.25621818]
[1738250910231,0.27023873,680.82,679.19,1.36846841]
[1738250910530,0.27021304,680.81,679.2,0.25615515]
[1738250910729,0.27021304,680.82,679.2,0.25615515]
[1738250910925,1.38914731,680.83,679.21,0.25614703]
[1738250911132,0.27021166,680.82,679.22,0.25614703]
[1738250911329,0.27021166,680.82,679.2,0.25614703]
[1738250911525,0.27021166,680.82,679.21,0.25614703]
[1738250911729,0.27021166,680.82,679.22,0.25614703]
[1738250912030,0.27021166,680.82,679.23,0.25614703]
[1738250912227,0.27021166,680.82,679.2,0.25614703]
[1738250912426,0.27021166,680.82,679.21,0.25614703]
[1738250912725,0.27021166,680.82,679.22,0.25614703]
[1738250912929,0.27021166,680.82,679.2,0.25614703]
[1738250913230,0.27021166,680.82,679.21,0.25614703]
[1738250913431,0.27021166,680.82,679.22,0.25614703]
[1738250913624,0.27021166,680.82,679.2,0.25614703]
[1738250913830,0.29375908,680.83,679.21,0.25608634]
[1738250914031,0.27018729,680.81,679.22,0.25608634]
[1738250914230,0.27018729,680.8,679.2,0.25608634]
[1738250914430,0.27018729,680.82,679.21,0.25608634]
[1738250914628,0.27018729,680.79,679.22,0.25608634]
[1738250914828,0.27018729,680.81,679.2,0.25608634]
[1738250915023,0.27018729,680.78,679.21,0.25608634]
[1738250915228,0.27018729,680.8,679.22,0.25608634]
[1738250915429,0.27018729,680.79,679.2,0.25608634]
[1738250915630,0.27018729,680.82,679.2,0.25608634]
[1738250915833,0.27018729,680.81,679.2,0.25608634]
[1738250916132,0.27018729,680.8,679.2,0.25608634]
[1738250916332,0.29375908,680.83,679.2,0.25608634]
[1738250916333,0.27018729,680.82,679.2,0.25608634]
[1738250916633,0.27018729,680.81,679.2,0.25608634]
[1738250916934,0.27018729,680.8,679.2,0.25608634]
[1738250917132,0.27018729,680.82,679.2,0.25608634]
[1738250917332,0.27018729,680.79,679.2,0.25608634]
[1738250917531,0.27018729,680.82,679.2,0.25608634]
[1738250917833,0.27018729,680.81,679.2,0.25608634]
[1738250918131,0.27018729,680.8,679.2,0.25608634]
[1738250918333,0.29375908,680.83,679.2,0.25608634]
[1738250919831,0.29375908,680.83,679.2,1.47708634]
[1738250920028,0.29375908,680.83,679.21,0.25608634]
[1738250920729,0.29375908,680.83,679.22,0.25590579]
[1738250920935,0.27012246,680.82,679.21,0.25590579]
[1738250921134,0.27012246,680.82,679.22,0.25590579]
[1738250921340,0.27012246,680.82,679.23,0.25590579]
[1738250921537,0.27012246,680.82,679.21,0.25590579]
[1738250921834,0.27012246,680.82,679.22,0.25590579]
[1738250922035,0.27012246,680.82,679.21,0.25590579]
[1738250922334,0.29375908,680.83,679.22,0.25590579]
[1738250922536,0.29375908,680.83,679.23,0.25590579]
[1738250922730,0.29375908,680.83,679.21,0.25590579]
[1738250922929,0.29375908,680.83,679.23,0.29445106]
[1738250923137,0.29375908,680.83,679.24,0.25590579]
[1738250923338,0.29375908,680.83,679.26,0.29443806]
[1738250923541,0.29375908,680.83,679.27,0.25590579]
[1738250923840,0.29375908,680.83,679.26,0.29443806]
[1738250924137,0.29375908,680.83,679.27,0.25595265]
[1738250924737,0.29375908,680.83,679.28,1.53436335]
[1738250924936,0.29375908,680.83,679.29,0.25595265]
[1738250927440,1.09538823,681.21,679.29,0.25595265]
[1738250927633,0.27006642,681.2,679.29,0.25595265]
[1738250928139,0.27006642,681.2,679.31,0.29441639]
[1738250928340,0.27006642,681.2,679.32,0.25595265]
[1738250928539,0.27006642,681.21,679.32,0.25595265]
[1738250928739,0.27006642,681.2,679.34,0.29440339]
[1738250928941,0.27006642,681.19,679.35,0.25595265]
[1738250929142,1.09538823,681.22,679.34,0.29440339]
[1738250929336,0.56367995,681.21,679.35,0.25598443]
[1738250929535,0.27008473,681.2,679.35,0.25598443]
[1738250929743,0.27008473,681.2,679.37,0.29439039]
[1738250930043,0.27008473,681.2,679.38,0.25598443]
[1738250930343,0.27008473,681.2,679.4,0.29437739]
[1738250930543,0.27008473,681.2,679.41,0.25598443]
[1738250930745,0.29359522,681.21,679.4,0.29437739]
[1738250930945,0.27008705,681.2,679.41,0.25599027]
[1738250931147,0.27008705,681.2,679.43,0.29436439]
[1738250931645,0.27008705,681.2,679.44,0.25599027]
[1738250934444,0.29359522,681.21,679.43,0.29436439]
[1738250934643,0.27014125,681.2,679.44,0.25626063]
[1738250935045,0.27014125,681.19,679.44,0.25626063]
[1738250935245,0.29359522,681.21,679.44,0.25626063]
[1738250935246,1.09538823,681.1,679.44,0.25626063]
[1738250935450,0.27014125,681.09,679.44,0.25626063]
[1738250937745,0.27014125,681.09,679.43,0.29436439]
[1738250938348,0.27014125,681.09,679.44,0.25633133]
[1738250938541,0.27014125,681.09,679.43,0.29436439]
[1738250938747,1.09538823,680.87,679.44,0.25633098]
[1738250939045,0.27014125,680.86,679.43,0.29436439]
[1738250939849,0.27014125,680.86,679.44,0.2563358]
[1738250941650,1.09538823,680.81,679.44,0.2563358]
[1738250941845,0.27014125,680.8,679.44,0.2563358]
[1738250944251,0.27014125,680.8,679.45,0.29435572]
[1738250944452,0.27014125,680.8,679.46,0.2563358]
[1738250944654,1.09538823,680.67,679.46,0.2563358]
[1738250944855,0.27014125,680.66,679.46,0.2563358]
[1738250947261,1.09538823,680.67,679.48,0.29434273]
[1738250947451,1.09538823,680.66,679.49,0.2563358]
[1738250948149,1.09538823,680.66,679.48,0.29434273]
[1738250948353,1.09538823,680.66,679.51,0.29432973]
[1738250948851,1.09538823,680.66,679.52,0.25616144]
[1738250949654,1.09538823,680.66,679.54,0.29431674]
[1738250949851,1.09538823,680.66,679.55,0.25616144]
[1738250950049,1.09538823,680.66,679.57,0.29430375]
[1738250950251,1.09538823,680.66,679.58,0.25616144]
[1738250950449,1.09538823,680.8,679.6,0.29429075]
[1738250950648,0.27011967,680.79,679.61,0.25616144]
[1738250950853,0.27011967,680.79,679.62,0.29428209]
[1738250951054,0.27011967,680.79,679.63,0.25616144]
[1738250951252,0.27011712,680.78,679.64,0.55042333]
[1738250951452,0.27011712,680.79,679.65,0.2561499]
[1738250951653,0.27011712,680.78,679.65,0.2561499]
[1738250951953,0.27011712,680.79,679.65,0.2561499]
[1738250952156,0.27011712,680.78,679.66,0.29426477]
[1738250952353,0.27011712,680.79,679.67,0.2561499]
[1738250952657,0.27011712,680.78,679.68,0.29425612]
[1738250952851,0.27011712,680.79,679.69,0.2561499]
[1738250953051,1.36550535,680.78,679.69,0.2561499]
[1738250953355,0.27011712,680.77,679.69,0.2561499]
[1738250953557,1.09538823,680.78,679.7,0.29424746]
[1738250953759,1.09538823,680.78,679.71,0.2561499]
[1738250954155,1.09538823,680.78,679.72,0.2942388]
[1738250954352,1.09538823,680.78,679.73,0.2561499]
[1738250954553,1.09538823,680.78,679.74,0.29423014]
[1738250954755,1.09538823,680.78,679.75,0.2561499]
[1738250954957,1.09538823,680.78,679.76,0.29422148]
[1738250955459,1.09538823,680.78,679.77,0.25605388]
[1738250956759,1.09538823,680.86,679.77,0.25605388]
[1738250959254,1.09538823,680.86,679.76,0.29422148]
[1738250960360,1.09538823,680.99,679.76,0.29422148]
[1738250960559,0.27008189,680.98,679.76,0.29422148]
[1738250961654,1.09538823,680.99,679.76,0.29422148]
[1738250961858,0.27007835,680.98,679.76,0.29422148]
[1738250963958,1.09538823,681.0,679.76,0.29422148]
[1738250963959,0.27007835,680.99,679.76,0.29422148]
[1738250964962,1.09538823,681.0,679.76,0.29422148]
[1738250965156,0.2700822,680.99,679.76,0.29422148]
[1738250966162,0.2700822,681.03,679.76,0.29422148]
[1738250966861,1.09538823,681.04,679.76,0.29422148]
[1738250966862,0.27008473,681.02,679.76,0.29422148]
[1738250967062,0.27008473,681.03,679.76,0.29422148]
[1738250967261,0.27008473,681.02,679.76,0.29422148]
[1738250967462,0.27008473,681.03,679.76,0.29422148]
[1738250967664,0.27008473,681.02,679.76,0.29422148]
[1738250967960,0.27008473,681.01,679.76,0.29422148]
[1738250968161,0.27008473,681.03,679.76,0.29422148]
[1738250968359,0.27008473,681.02,679.76,0.29422148]
[1738250968665,0.27008473,681.03,679.76,0.29422148]
[1738250968864,0.27008473,681.02,679.76,0.29422148]
[1738250969160,0.27008473,681.01,679.76,0.29422148]
[1738250969364,0.27008473,681.03,679.76,0.29422148]
[1738250969565,0.27008473,681.02,679.76,0.29422148]
[1738250969766,0.27008473,681.01,679.76,0.29422148]
[1738250969962,1.09538823,681.04,679.76,0.29422148]
[1738250969963,0.27008473,681.03,679.76,0.29422148]
[1738250970166,0.27008473,681.02,679.76,0.29422148]
[1738250970361,0.27008473,681.03,679.76,0.29422148]
[1738250970965,1.09538823,681.04,679.76,0.29422148]
[1738250971165,0.27011545,681.03,679.76,0.29422148]
[1738250972561,0.27011545,681.05,679.76,0.29422148]
[1738250972761,0.27011545,681.04,679.76,0.29422148]
[1738250972966,0.27014366,681.03,679.76,0.29422148]
[1738250973159,0.27014366,681.05,679.76,0.29422148]
[1738250974274,0.27014366,681.04,679.76,0.29422148]
[1738250974573,0.27014366,681.03,679.76,0.29422148]
[1738250974774,0.27014366,681.05,679.76,0.29422148]
[1738250974975,0.27014366,681.04,679.76,0.29422148]
[1738250975168,0.29367281,681.03,679.76,0.29422148]
[1738250975369,0.27014366,681.02,679.76,1.12822148]
[1738250975574,0.29368144,681.01,679.76,1.12822148]
[1738250975774,0.27014366,681.0,679.76,1.12822148]
[1738250975975,0.29369006,680.99,679.76,1.12822148]
[1738250976176,0.27014366,680.98,679.76,1.12822148]
[1738250976379,0.29369869,680.97,679.76,1.12822148]
[1738250976675,1.09538823,680.71,679.76,1.12822148]
[1738250977076,0.27014366,680.7,679.76,1.12822148]
[1738250978672,0.27023123,680.69,679.76,1.12822148]
[1738250978874,0.27023123,680.7,679.76,1.12822148]
[1738250979077,0.27023123,680.69,679.76,1.12822148]
[1738250979279,0.27023123,680.7,679.76,1.12822148]
[1738250979579,1.09538823,680.71,679.76,1.12822148]
[1738250979580,0.27023123,680.69,679.76,1.12822148]
[1738250979779,0.27023123,680.68,679.76,1.12822148]
[1738250979981,1.09538823,680.65,679.76,1.12822148]
[1738250980281,0.27023123,680.64,679.76,1.12822148]
[1738250983777,1.36561946,680.64,679.76,1.12822148]
[1738250983976,0.27023123,680.63,679.76,1.12822148]
[1738250984477,0.27023123,680.63,679.76,0.834]
[1738250987187,0.86184725,680.97,679.76,0.834]
[1738250987188,0.27025175,680.62,679.76,0.834]
[1738250987486,0.27025175,680.61,679.76,0.834]
[1738250987683,0.27025175,680.6,679.76,0.834]
[1738250987884,0.27025175,680.59,679.76,0.834]
[1738250988082,0.27025175,680.69,679.76,0.834]
[1738250988388,0.27025175,680.68,679.76,0.834]
[1738250988585,0.27025175,680.69,679.76,0.834]
[1738250988789,0.27025175,680.68,679.76,0.834]
[1738250988989,0.27025175,680.69,679.76,0.834]
[1738250989287,0.27025175,680.68,679.76,0.834]
[1738250989483,0.27025175,680.67,679.76,0.834]
[1738250989785,0.27025175,680.66,679.76,0.834]
[1738250989990,0.27025175,680.69,679.76,0.834]
[1738250990182,0.27025175,680.65,679.76,0.834]
[1738250990381,1.09538823,680.72,679.76,0.834]
[1738250990884,0.27028683,680.71,679.76,0.834]
[1738250992885,1.09538823,680.7,679.76,0.834]
[1738250993085,0.27028683,680.69,679.76,0.834]
[1738250995790,0.27027839,680.68,679.76,0.834]
[1738250995989,0.27027839,680.69,679.76,0.834]
[1738250996186,1.36566662,680.67,679.76,0.834]
[1738250996383,0.27027839,680.66,679.76,0.834]
[1738250997389,1.09538823,680.67,679.76,0.834]
[1738250997586,0.27027441,680.65,679.76,0.834]
[1738250997786,0.27027441,680.64,679.76,0.834]
[1738250998190,0.27027441,680.63,679.76,0.834]
[1738250998491,0.27027441,680.66,679.76,0.834]
[1738250998692,0.27027441,680.65,679.76,0.834]
[1738250998991,0.27027441,680.64,679.76,0.834]
[1738250999191,0.27027441,680.63,679.76,0.834]
[1738250999492,0.27027441,680.62,679.76,0.834]
[1738250999791,0.27027441,680.61,679.76,0.834]
[1738250999997,0.27027441,680.71,679.76,0.834]
[1738251002194,0.27023738,680.7,679.76,0.834]
[1738251002397,0.27023738,680.71,679.76,0.834]
[1738251003697,0.27020783,680.7,679.76,0.834]
[1738251003901,1.09538823,680.72,679.76,0.834]
[1738251003902,0.27020783,680.69,679.76,0.834]
[1738251004206,0.27020783,680.68,679.76,0.834]
[1738251004600,0.27020783,680.67,679.76,0.834]
[1738251004797,0.27020783,680.71,679.76,0.834]
[1738251005002,0.27020783,680.7,679.76,0.834]
[1738251005501,0.27020783,680.69,679.76,0.834]
[1738251005701,0.27020783,680.71,679.76,0.834]
[1738251005900,0.27020783,680.7,679.76,0.834]
[1738251006099,0.27020783,680.71,679.76,0.834]
[1738251006297,0.27020783,680.7,679.76,0.834]
[1738251006495,0.27020783,680.71,679.76,0.834]
[1738251006702,0.27020783,680.7,679.76,0.834]
[1738251008704,1.09538823,680.71,679.76,0.834]
[1738251008902,0.27020858,680.7,679.76,0.834]
[1738251009298,1.09538823,680.58,679.76,0.834]
[1738251009499,0.27020858,680.57,679.76,0.834]
[1738251011909,1.09538823,680.58,679.76,0.834]
[1738251012208,0.27018448,680.57,679.76,0.834]
[1738251012406,0.27018355,680.59,679.76,0.834]
[1738251013107,1.09538823,680.6,679.76,0.834]
[1738251013305,0.27017344,680.59,679.76,0.834]
[1738251013908,1.09538823,680.6,679.76,0.834]
[1738251018610,1.09538823,680.78,679.76,0.834]
[1738251018808,0.27014454,680.77,679.76,0.834]
[1738251022016,0.27014454,680.81,679.76,0.834]
[1738251025114,0.27014454,680.9,679.76,0.834]
[1738251025313,0.27014124,680.89,679.76,0.834]
[1738251025619,0.27014124,680.88,679.76,0.834]
[1738251025819,0.27014124,680.87,679.76,0.834]
[1738251026019,0.27014124,680.9,679.76,0.834]
[1738251026220,0.27014124,680.89,679.76,0.834]
[1738251026520,0.27014124,680.88,679.76,0.834]
[1738251026720,0.27014124,680.9,679.76,0.834]
[1738251027021,0.2701386,680.89,679.76,0.834]
[1738251027220,0.2701386,680.9,679.76,0.834]
[1738251027416,0.2701386,680.89,679.76,0.834]
[1738251027620,0.2701386,680.9,679.76,0.834]
[1738251027822,0.2701386,680.89,679.76,0.834]
[1738251028021,0.2701386,680.9,679.76,0.834]
[1738251028225,1.09538823,680.84,679.76,0.834]
[1738251028421,0.2701386,680.83,679.76,0.834]
[1738251028622,0.27013625,680.82,679.76,0.834]
[1738251028823,0.27013625,680.83,679.76,0.834]
[1738251029022,0.27013625,680.82,679.76,0.834]
[1738251029326,0.27013625,680.81,679.76,0.834]
[1738251029522,0.27013625,680.83,679.76,0.834]
[1738251029723,1.09538823,680.84,679.76,0.834]
[1738251029924,0.27011995,680.83,679.77,0.29421716]
[1738251030522,0.27010505,680.82,679.77,0.29421716]
[1738251030720,1.09538823,680.84,679.77,0.29421716]
[1738251030721,0.27010505,680.81,679.77,0.29421716]
[1738251030925,0.27010505,680.8,679.77,0.29421716]
[1738251031325,1.09538823,680.95,679.77,1.36821716]
[1738251031526,0.27009785,680.94,679.77,1.36821716]
[1738251036433,1.09538823,680.9,679.77,1.36821716]
[1738251036633,0.27009785,680.89,679.77,1.36821716]
[1738251039730,1.09538823,680.87,679.77,1.36821716]
[1738251039928,0.27009785,680.86,679.77,1.36821716]
[1738251042230,1.09538823,680.87,679.77,1.36821716]
[1738251042435,0.2700943,680.86,679.77,1.36821716]
[1738251043232,1.09538823,680.82,679.77,1.36821716]
[1738251046641,1.09538823,680.87,679.77,1.36821716]
[1738251050137,0.27011542,680.86,679.77,1.36821716]
[1738251050953,0.27013278,680.85,679.77,1.36821716]
[1738251051249,0.27013278,680.84,679.77,1.36821716]
[1738251051448,0.27013278,680.86,679.77,1.36821716]
[1738251051649,0.27013278,680.85,679.77,1.36821716]
[1738251051948,0.27013278,680.84,679.77,1.36821716]
[1738251052151,0.27013278,680.86,679.77,1.36821716]
[1738251052349,1.09538823,680.87,679.77,1.36821716]
[1738251052550,0.27014041,680.86,679.77,1.36821716]
[1738251052750,1.09538823,680.65,679.77,1.36821716]
[1738251053650,2.23641763,681.25,679.77,1.36821716]
[1738251053852,0.56794084,682.88,679.77,1.36821716]
[1738251054149,5.28565506,682.88,679.77,1.36821716]
[1738251054449,0.27014351,680.96,679.77,1.36821716]
[1738251063354,2.61095096,682.51,679.77,1.36821716]
[1738251063553,0.56793754,682.51,679.77,1.36821716]
[1738251063751,2.61095096,682.55,679.77,1.36821716]
[1738251063954,4.9308264,682.55,679.77,1.36821716]
[1738251064255,3.81051707,682.54,679.77,1.36821716]
[1738251064455,2.04301342,682.53,679.77,1.36821716]
[1738251064758,2.61088885,682.53,679.77,1.36821716]
[1738251064958,4.9308264,682.53,679.77,1.36821716]
[1738251065160,3.81051707,682.52,679.77,1.36821716]
[1738251065358,2.04301342,682.51,679.77,1.36821716]
[1738251065656,2.6108814,682.51,679.77,1.36821716]
[1738251065856,4.36295097,682.51,679.77,1.36821716]
[1738251066060,3.81048155,682.5,679.77,1.36821716]
[1738251066257,2.61085333,682.49,679.77,1.36821716]
[1738251067562,4.93079088,682.49,679.77,1.36821716]
[1738251068059,3.81048155,682.48,679.77,1.36821716]
[1738251068264,2.61085333,682.47,679.77,1.36821716]
[1738251068963,4.93079088,682.47,679.77,1.36821716]
[1738251069160,3.81048155,682.46,679.77,1.36821716]
[1738251069360,2.61085333,682.45,679.77,1.36821716]
[1738251069960,0.56783991,682.44,679.77,1.36821716]
[1738251070462,0.56783991,682.44,679.78,0.25594483]
[1738251070765,0.29312189,682.31,679.78,0.25594483]
[1738251071267,0.27002828,682.3,679.78,0.25594483]
[1738251071766,0.27002828,682.29,679.78,0.25594483]
[1738251072062,0.27002828,682.29,679.78,1.53394483]
[1738251072262,0.27002828,682.28,679.79,0.25594483]
[1738251072964,0.29312189,682.31,679.79,0.25594483]
[1738251072965,0.27002828,682.27,679.79,0.25594483]
[1738251073665,0.27002828,682.26,679.79,0.25594483]
[1738251073868,0.27002828,682.25,679.79,0.25594483]
[1738251074065,0.27002828,682.24,679.79,0.25594483]
[1738251074562,0.29312189,682.31,679.79,0.25594483]
[1738251074563,0.27002828,682.23,679.79,0.25594483]
[1738251074959,0.27002828,682.22,679.79,0.25594483]
[1738251075163,0.27002828,682.21,679.78,1.278]
[1738251075362,0.29312189,682.31,679.79,0.25567132]
[1738251075562,0.26993484,682.2,679.79,0.25567132]
[1738251075962,0.26993484,682.19,679.79,0.25567132]
[1738251076267,0.26993484,682.18,679.79,0.25567132]
[1738251076666,0.26993484,682.17,679.79,0.25567132]
[1738251076961,0.26993484,682.17,679.78,1.278]
[1738251076962,0.26993858,682.16,679.8,0.25568679]
[1738251077166,0.26993858,682.15,679.8,0.25568679]
[1738251077366,0.26993858,682.14,679.81,0.25568679]
[1738251077565,0.26993858,682.13,679.81,0.25568679]
[1738251077761,0.26993858,682.12,679.82,0.25568679]
[1738251077962,0.26993858,682.12,679.79,0.25568679]
[1738251078162,0.26993858,682.11,679.79,0.25568679]
[1738251078467,0.26993858,682.1,679.83,0.25568679]
[1738251078666,0.26993858,682.09,679.8,0.25568679]
[1738251079063,0.26993858,682.09,679.78,1.278]
[1738251079064,0.26993858,682.08,679.81,0.25568679]
[1738251079263,0.29312189,682.31,679.81,0.25568679]
[1738251079264,0.26993858,682.07,679.81,0.25568679]
[1738251079466,0.26993858,682.07,679.78,1.278]
[1738251079670,0.29312189,682.31,679.79,0.25567211]
[1738251079869,0.26993638,682.06,679.79,0.25567211]
[1738251080066,0.26993638,682.05,679.79,0.25567211]
[1738251080568,0.26993638,682.04,679.79,0.25567211]
[1738251080971,0.29312189,682.31,679.8,0.25564427]
[1738251081170,0.26993225,682.03,679.81,0.25564427]
[1738251081372,0.26993225,682.02,679.81,0.25564427]
[1738251081570,0.26993225,682.02,679.79,0.25564427]
[1738251081976,0.26993225,682.01,679.82,0.25564427]
[1738251082177,0.26993225,682.01,679.83,0.25564427]
[1738251082373,0.26993225,682.01,679.78,1.278]
[1738251082374,0.26993225,682.01,679.79,0.25564427]
[1738251082674,0.26993225,682.0,679.84,0.25564427]
[1738251082878,0.26993225,682.0,679.8,0.25564427]
[1738251083281,0.26993225,681.99,679.85,0.25564427]
[1738251083780,0.29312189,682.31,679.78,1.278]
[1738251083781,0.26993225,681.98,679.81,0.25564427]
[1738251083980,0.26993225,681.97,679.86,0.25564427]
[1738251084177,0.26993225,681.97,679.87,0.25564427]
[1738251084382,0.26993225,681.96,679.87,0.25564427]
[1738251084883,0.26993225,681.95,679.79,0.25564427]
[1738251085082,0.29312189,682.31,679.88,0.25564427]
[1738251085083,0.26993225,681.94,679.88,0.25564427]
[1738251085284,0.26993225,681.94,679.78,1.278]
[1738251085285,0.26993225,681.94,679.89,0.25564427]
[1738251085584,0.26993225,681.93,679.79,0.25564427]
[1738251085783,0.26993225,681.92,679.9,0.25564427]
[1738251085979,0.26993225,681.91,679.9,0.25564427]
[1738251086382,0.26993225,681.91,679.91,0.25564427]
[1738251086580,0.26993225,681.9,679.79,0.25564427]
[1738251086781,0.26993225,681.89,679.79,0.25564427]
[1738251086984,0.29312189,682.31,679.78,1.278]
[1738251087185,0.29312189,682.31,679.79,0.25574321]
[1738251087380,0.26997774,681.88,679.79,0.25574321]
[1738251087882,0.26997774,682.3,679.79,0.25574321]
[1738251088086,0.26997774,681.87,679.79,0.25574321]
[1738251088481,0.26997774,681.86,679.79,0.25574321]
[1738251088785,0.26997774,681.85,679.79,0.25574321]
[1738251088984,0.26997774,681.84,679.79,0.25574321]
[1738251089185,0.26997774,681.83,679.79,0.25574321]
[1738251089485,0.26997774,681.82,679.79,0.25574321]
[1738251089685,0.26997774,681.81,679.79,0.25574321]
[1738251089885,0.26997774,681.8,679.79,0.25574321]
[1738251090280,0.26997774,681.79,679.79,0.25574321]
[1738251090787,0.26997774,682.3,679.79,0.25574321]
[1738251090988,0.26997774,681.78,679.79,0.25574321]
[1738251091482,0.26997774,682.3,679.79,0.25574321]
[1738251091681,0.26997774,681.77,679.79,0.25574321]
[1738251091886,0.26997774,681.76,679.79,0.25574321]
[1738251092186,0.26997774,681.75,679.79,0.25574321]
[1738251092386,0.26997774,681.74,679.79,0.25574321]
[1738251092784,0.26997774,682.3,679.79,0.25574321]
[1738251093183,0.26997774,682.29,679.79,0.25574321]
[1738251093484,0.26997774,682.28,679.79,0.25574321]
[1738251093687,0.26997774,682.27,679.79,0.25574321]
[1738251093885,0.26993278,682.26,679.78,1.278]
[1738251094087,0.26993278,682.26,679.79,0.25546128]
[1738251094387,0.26993278,682.25,679.79,0.25546128]
[1738251094589,0.26993278,682.24,679.79,0.25546128]
[1738251094786,0.26993278,682.23,679.79,0.25546128]
[1738251094989,0.26993278,682.22,679.79,0.25546128]
[1738251095489,0.26993278,682.21,679.79,0.25546128]
[1738251095892,0.26993278,682.2,679.79,0.25546128]
[1738251096190,0.26993278,682.19,679.79,0.25546128]
[1738251096387,0.26993278,682.18,679.79,0.25546128]
[1738251096686,0.26993278,682.17,679.79,0.25546128]
[1738251096889,0.26993278,682.16,679.79,0.25546128]
[1738251097287,0.26993278,682.15,679.79,0.25546128]
[1738251097485,0.26993278,682.14,679.79,0.25546128]
[1738251097892,0.26993278,682.13,679.79,0.25546128]
[1738251098089,0.26993278,682.13,679.78,0.25546128]
[1738251098392,0.26993278,682.12,679.78,0.25546128]
[1738251098590,0.26993278,682.11,679.78,0.25546128]
[1738251098788,0.26993278,682.1,679.78,0.25546128]
[1738251099188,0.29312189,682.31,679.78,0.25546128]
[1738251099189,0.26993278,682.09,679.78,1.29646128]
[1738251099395,0.26993278,682.09,679.79,0.25546128]
[1738251099593,0.26993278,682.08,679.79,0.25546128]
[1738251099991,0.26993278,682.3,679.79,0.25546128]
[1738251100292,0.26993278,682.29,679.79,0.25546128]
[1738251100590,0.29312189,682.31,679.79,0.25546128]
[1738251100789,0.2698589,682.28,679.78,1.041]
[1738251100989,0.2698589,682.3,679.9,0.2941609]
[1738251101191,0.29314337,682.26,679.9,0.2941609]
[1738251101690,0.26986105,682.25,679.91,0.25534121]
[1738251101894,0.29315626,682.23,680.02,0.29410899]
[1738251102095,0.29315626,682.23,680.03,0.25534121]
[1738251102390,0.26986105,682.22,680.03,0.25534121]
[1738251103391,0.26986105,682.22,680.05,0.29409602]
[1738251103895,0.26986105,682.22,680.06,0.25534121]
[1738251104096,0.29315626,682.23,680.06,0.25534121]
[1738251104390,0.26983158,682.22,680.07,0.25525897]
[1738251104595,0.26983158,682.22,680.06,0.25525897]
[1738251104794,0.26983158,682.22,680.07,0.25525897]
[1738251105092,0.26983158,682.22,680.08,0.25525897]
[1738251105295,0.26983158,682.22,680.09,0.25525897]
[1738251105493,0.26983158,682.22,680.06,0.25525897]
[1738251105697,0.26983158,682.22,680.1,0.25525897]
[1738251105895,0.26983158,682.22,680.07,0.25525897]
[1738251106093,0.26983158,682.22,680.11,0.25525897]
[1738251106297,0.26983158,682.22,680.12,0.25525897]
[1738251106792,0.26983158,682.22,680.06,0.25525897]
[1738251106993,0.26983158,682.22,680.13,0.25525897]
[1738251107398,0.26983158,682.22,680.05,0.29409602]
[1738251107399,0.26983158,682.22,680.07,0.25525897]
[1738251107601,0.26983158,682.22,680.08,0.25525897]
[1738251107895,0.26983158,682.22,680.09,0.25525897]
[1738251108398,0.26983158,682.22,680.06,0.25525897]
[1738251109100,0.26983158,682.22,680.07,0.25525897]
[1738251109698,0.26983158,682.22,680.08,0.25525897]
[1738251109895,0.26983158,682.22,680.05,0.29409602]
[1738251109896,0.26983158,682.22,680.06,0.25525897]
[1738251110400,0.26983158,682.22,680.09,0.25525897]
[1738251110897,0.26983158,682.22,680.07,0.25525897]
[1738251111101,0.26983158,682.22,680.1,0.25504882]
[1738251111299,0.26973502,682.21,680.1,0.25504882]
[1738251111600,0.26973502,682.21,680.11,0.25504882]
[1738251111801,0.26973502,682.22,680.06,0.25504882]
[1738251116210,0.26973502,682.22,680.06,1.32904882]
[1738251116811,0.26973502,682.22,680.07,0.25504882]
[1738251117607,0.26976937,682.21,680.07,0.25504882]
[1738251117808,0.26976937,682.21,680.06,1.074]
[1738251117809,0.26976937,682.22,680.08,0.2551795]
[1738251118010,0.26976937,682.22,680.07,0.2551795]
[1738251118212,0.26976937,682.21,680.09,0.2551795]
[1738251118409,0.26976937,682.21,680.1,0.2551795]
[1738251118611,0.26976937,682.22,680.07,0.2551795]
[1738251118907,0.26976937,682.22,680.11,0.2551795]
[1738251119111,0.26976937,682.2,680.08,0.2551795]